{"text_format":"1","workbook":"xlsx","n_sheets":1,"sheets":["PLACARD"],"not_rendered":{"charts":0,"images":8,"macros":1,"external_links":0,"defined_names":2,"comments":0,"pivot_tables":0},"unopened":[],"bounds":{"document_bytes":16777216,"sheet_cells":100000,"rows_first":2000,"rows_last":500,"rows_between":2000,"halvings":0,"cell_chars":16384,"cell_head_chars":4096},"cells_cut":0,"cells_raw":0,"read":"whole","date_system":"1900"}

{"sheet":"PLACARD","index":0,"n_rows":58,"n_cols":66,"rows_kept":58,"cut":false,"hidden":false,"merged":[[1,18,1,21],[2,18,2,21],[6,2,6,4],[1,1,2,3],[7,2,7,4],[1,4,2,17],[12,2,12,4],[14,2,14,4],[11,8,11,9],[11,10,11,11],[11,2,11,4],[13,2,13,4],[43,24,44,26],[2,32,2,33],[2,34,2,35],[2,36,2,37],[2,38,2,39]]}
[]
[null,null,null,null,{"$f":"AT7","v":"PLACARD DURVJU KALKULATORS"},null,null,null,null,null,null,null,null,null,null,null,null,null,{"$f":"AT8","v":"Pēdējais atjauninājums:"},null,null,null,null,null,"LISTAS DE VALIDACIÓN",null,null,null,null,null,null,"CÁLCULOS",null,null,null,null,null,null,null,null,null,null,null,null,"TRADUCCIONES"]
[null,null,null,null,null,null,null,null,null,null,null,null,null,null,null,null,null,null,{"$f":"AT9","v":"Marts 2018"},null,null,null,null,null,null,null,null,null,null,null,null,null,"ANCHO TABLERO\n(T)",null,"ANCHO CRISTAL\n(C)",null,"ANCHO TRAV.\n(TR)",null,"ANCHO PER. SUP/INF\n(PS/PI)",null,"ANCHO\nPUERTA","A min",null,null,null,null,null,null,null,"MES","AÑO"]
[null,null,null,null,null,null,null,null,null,null,null,null,null,null,null,null,null,null,null,null,null,null,null,null,"Sistema corredero",null,null,"Perfiles","AGL",null,null,null,"2P","3P","2P","3P","ANCHO PERF.","MEDIDA","2P","3P","=T+ valor","c/slow",null,null,null,"texto a mostrar","LV",null,"Fecha de actualización:","Marzo",2018]
[null,{"$f":"AT10","v":"IEVADIET AILES IZMĒRUS"},null,null,null,null,null,{"$f":"AT32","v":"VĒRTNES IZMĒRS"},null,null,null,{"$f":"IF(ISERROR(VLOOKUP($O$8,$AB$48:$AB$50,1,0)),0,1)","v":0},null,null,null,null,null,null,null,null,null,null,null,null,{"$f":"+AT14","v":"Plackard"},42,null,"Sharp 16",16,null,null,"Sharp 16",{"$f":"($D$9-45)/2","v":927.5},{"$f":"($D$9-60)/3","v":613.33333333333337},{"$f":"AG5-2","v":925.5},611.33333333333337,25,{"$f":"$I$7-(2*AK5)","v":596.66666666666663},{"$f":"AG5","v":927.5},613.33333333333337,30,640,null,null,null,null,null,null,null,null,null,null,null,null,null,null,null,null,"MESES DEL AÑO"]
[null,null,null,null,null,null,null,null,null,null,null,null,null,null,null,null,null,null,null,null,null,null,null,null,{"$f":"+AT15","v":"Plackard ar bremzi"},42,null,"Sharp 18",18,null,null,"Sharp 18E",{"$f":"($D$9-45)/2","v":927.5},{"$f":"($D$9-60)/3","v":613.33333333333337},925.5,611.33333333333337,25,{"$f":"$I$7-(2*AK6)","v":596.66666666666663},927.5,613.33333333333337,30,640,null,null,1,null,"ES","IT","FR","EN","PT","LV","DE","SERBIO",null,null,null,null,"ES","IT","FR","IN","PT","LV","DE","SERBIO"]
[null,{"$f":"AT11","v":"Bīdāmo durvju sistēma"},"Plackard",null,null,null,null,{"$f":"+AT50","v":"Vērtnes kopējais platums"},{"$f":"K13+VLOOKUP($C$13,$AF$5:$AO$20,10,0)","v":646.66666666666663},"mm",null,null,null,null,{"$f":"IF(O8=\"\",\"\",AT41)","v":"Komentāri:"},null,null,null,null,null,null,null,null,null,null,null,null,"Wave 16",16,null,null,"Wave 16",{"$f":"($D$9-64)/2","v":918},{"$f":"($D$9-86)/3","v":604.66666666666663},916,602.66666666666663,33,{"$f":"$I$7-(2*AK7)","v":580.66666666666663},918,604.66666666666663,42,656,null,null,2,{"$f":"HLOOKUP($AU$4,$AU$6:$BB$85,AS7,0)","v":"PLACARD DURVJU KALKULATORS"},"CÁLCULO DE PUERTAS PLACARD","CALCOLI PER PORTE PLACARD","CALCUL PORTES PLACARD","PLACARD DOORS CALCULATION","CÁLCULO PORTAS PLACARD","PLACARD DURVJU KALKULATORS",null,"PLACARD KALKULACIJA VRATA",null,null,null,null,"Enero","Gennaio","Janvier","January","Janeiro","Janvāris",null,"Januar"]
[null,{"$f":"AT16","v":"Vērtņu skaits"},3,null,null,null,null,{"$f":"AT33","v":"Roktura profils (H) ="},{"$f":"$D$10-VLOOKUP($C$7,$Y$5:$Z$8,2,0)","v":1158},"mm",null,null,null,null,{"$f":"IFERROR(VLOOKUP(\"S1\",$Z$48:$AB$61,3,0),\"\")","v":" - Augšējais/apakšējais profils ir nepieciešams ja augšējais/apakšējais panelis ir no stikla"},null,null,null,null,null,null,null,null,null,null,null,null,"Wave 18",18,null,null,"Wave 18",{"$f":"($D$9-64)/2","v":918},{"$f":"($D$9-86)/3","v":604.66666666666663},916,602.66666666666663,33,{"$f":"$I$7-(2*AK8)","v":580.66666666666663},918,604.66666666666663,42,656,null,null,3,"Pēdējais atjauninājums:","Última actualización:","Aggiornato:","Actualisation:","Last update:","Última actualizaçao:","Pēdējais atjauninājums:",null,"Last update:",null,null,null,null,"Febrero","Febbraio"," Février","February","Fevereiro","Februāris",null,"Februar"]
[null,{"$f":"AT17","v":"Ailes platums"},"A=",1900,"mm",null,null,{"$f":"AT34","v":"U / H profils (TR) ="},{"$f":"VLOOKUP($C$13,$AF$5:$AO$20,7,0)","v":580.66666666666663},"mm",null,null,null,null,{"$f":"IFERROR(VLOOKUP(\"S2\",$Z$48:$AB$61,3,0),\"\")","v":" - Neaizmirstat blīvējumu stiklam  16-E7917121."},null,null,null,null,null,null,null,null,null,null,null,null,null,null,null,null,null,null,null,null,null,null,null,null,null,null,null,null,null,4,{"$f":"HLOOKUP($AU$4,$AU$6:$BB$85,AS9,0)","v":"Marts 2018"},{"$f":"VLOOKUP($AX$4,$BG$7:$BN$18,1,0)&\" \"&$AY$4","v":"Marzo 2018"},{"$f":"VLOOKUP($AX$4,$BG$7:$BN$18,2,0)&\" \"&$AY$4","v":"Marzo 2018"},{"$f":"VLOOKUP($AX$4,$BG$7:$BN$18,3,0)&\" \"&$AY$4","v":" Mars 2018"},{"$f":"VLOOKUP($AX$4,$BG$7:$BN$18,4,0)&\" \"&$AY$4","v":"March 2018"},{"$f":"VLOOKUP($AX$4,$BG$7:$BN$18,5,0)&\" \"&$AY$4","v":"Março 2018"},{"$f":"VLOOKUP($AX$4,$BG$7:$BN$18,6,0)&\" \"&$AY$4","v":"Marts 2018"},null,{"$f":"VLOOKUP($AX$4,$BG$7:$BN$18,5,0)&\" \"&$AY$4","v":"Março 2018"},null,null,null,null,"Marzo","Marzo"," Mars","March","Março","Marts",null,"Mart"]
[null,{"$f":"AT18","v":"Ailes augstums"},"HI=",1200,"mm",null,null,{"$f":"AT35","v":"Augš. / apakš. profils = "},{"$f":"VLOOKUP($C$13,$AF$5:$AO$20,IF($C$8=2,8,9),0)","v":604.66666666666663},"mm",null,null,null,null,{"$f":"IFERROR(VLOOKUP(\"S3\",$Z$48:$AB$61,3,0),\"\")","v":""},null,null,null,null,null,null,null,null,null,null,null,null,null,null,null,null,null,null,null,null,null,null,null,null,null,null,null,null,null,5,"IEVADIET AILES IZMĒRUS","INTRODUCIR DATOS DEL ARMARIO","INSERIRE I DATI DELL'ARMADIO","INTRODUIRE LES CARACTÉRISTIQUES DE L'ARMOIRE","INSERT WARDROBE DATA","INTRODUZIR DADOS DO ROUPEIRO","IEVADIET AILES IZMĒRUS",null,"UNESITE PODATKE GARDEROBERA",null,null,null,null,"Abril","Aprile"," Avril","April","Abril","Aprīlis",null,"April"]
[null,null,null,null,null,null,null,null,null,null,null,null,null,null,{"$f":"IFERROR(VLOOKUP(\"S4\",$Z$48:$AB$61,3,0),\"\")","v":""},null,null,null,null,null,null,null,null,null,"Tipo de puerta",null,null,null,null,null,null,null,null,null,null,null,null,null,null,null,null,null,null,null,6,"Bīdāmo durvju sistēma","Sistema corredero","Sistema scorrevole","Système coulissant","Sliding system","Sistema de correr","Bīdāmo durvju sistēma",null,"Klizni sistem",null,null,null,null,"Mayo","Maggio","Mai","May","Maio","Maijs",null,"Maj"]
[null,{"$f":"AT19","v":"Materiāls"},"Koks + 4mm stikls",null,null,null,null,null,{"$f":"AT36","v":"Augstums (Hc)"},null,{"$f":"AT37","v":"Platums (C)"},null,null,null,{"$f":"IFERROR(VLOOKUP(\"S5\",$Z$48:$AB$61,3,0),\"\")","v":""},null,null,null,null,null,null,null,null,null,{"$f":"+AT20","v":"4mm stikls"},null,null,null,null,null,null,null,null,null,null,null,null,null,null,null,null,null,null,null,7,"Palacard Clasic","Placard Clásico","Placard Classico","Placard Classique","Classic Placard","Placard Clasico","Palacard Clasic",null,"Classic Placard",null,null,null,null,"Junio","Giugno"," Juin","Juny","Junho","Jūnijs",null,"Jun"]
[null,{"$f":"AT23","v":"Roktura profils"},"Wave 18",null,null,null,null,{"$f":"AT38","v":"Panelis *:"},{"$f":"($I$8-(1.5*$C$14)-(2*IF($C$15=$AA$31,2,IF(OR($C$15=$AA$29,$C$15=$AA$30),1,0))))/($C$14+1)","v":578.25},"mm",{"$f":"VLOOKUP($C$13,$AF$5:$AO$20,IF($C$8=2,2,3),0)","v":604.66666666666663},"mm",null,null,null,null,null,null,null,null,null,null,null,null,{"$f":"+AT21","v":"Koks"},null,null,null,null,null,null,null,null,null,null,null,null,null,null,null,null,null,null,null,8,"Placard Clasic + bremze","Placard Clásico + Slowmove","Placard Classico + Slowmove","Placard Classique + Slowmove","Classic Placard + Slowmove","Placard Clasico + Slowmove","Placard Clasic + bremze",null,"Classic Placard + Slowmove mehanizam",null,null,null,null,"Julio","Luglio","Juillet","July","Julho","Jūlijs",null,"Jul"]
[null,{"$f":"AT24","v":"Dalījuma profilu skaits"},1,null,null,null,null,{"$f":"AT39","v":"Stikls *:"},{"$f":"I13-2","v":576.25},"mm",{"$f":"K13-2","v":602.66666666666663},"mm",null,null,null,null,null,null,null,null,null,null,null,null,{"$f":"+AT22","v":"Koks + 4mm stikls"},null,null,null,null,null,null,null,null,null,null,null,null,null,null,null,null,null,null,null,9,"Plackard","Placard Canal","Placard Canale","Placard Canale","Groove Placard","Placard Canal","Plackard",null,"Groove Placard",null,null,null,null,"Agosto","Agosto","Août","August","Agosto","Augusts",null,"Avgust"]
[null,{"$f":"IF($C$12=$Y$12,AT25,AT26)","v":"U profils"},"Bez U profila",null,null,null,null,{"$f":"AT40","v":"*Ar vienādiem dalījumiem"},null,null,null,null,null,null,null,null,null,null,null,null,null,null,null,null,null,null,null,null,null,null,null,null,null,null,null,null,null,null,null,null,null,null,null,null,10,"Plackard ar bremzi","Placard Canal + Slowmove","Placard Canale + Slowmove","Placard Canale + Slowmove","Groove Placard + Slowmove","Placard Canal + Slowmove","Plackard ar bremzi",null,"Groove Placard + Slowmove mehanizam",null,null,null,null,"Septiembre","Settembre"," Septembre ","September","Setembro","Septembris",null,"Septembar"]
[null,null,null,null,null,null,null,null,null,null,null,null,null,null,null,null,null,null,null,null,null,null,null,null,"Nº travesaños",null,null,null,null,null,null,null,null,null,null,null,null,null,null,null,null,null,null,null,11,"Vērtņu skaits","Nº de puertas","Nº di porte","Nº de portes","Nº of doors","Nº de portas","Vērtņu skaits",null,"Broj vrata",null,null,null,null,"Octubre","Ottobre"," Octobre","October","Outubro","Oktobris",null,"Oktobar"]
[null,null,null,null,null,null,null,null,null,null,null,null,null,null,null,null,null,null,null,null,null,null,null,null,0,null,null,null,null,null,null,null,null,null,null,null,null,null,null,null,null,null,null,null,12,"Ailes platums","Ancho interior","Larguezza interiore","Largeur intérieure","Interior width","Largura interior","Ailes platums",null,"Unutrašnja širina",null,null,null,null,"Noviembre","Novembre"," Novembre","November","Novembro","Novembris",null,"Novembar"]
[null,null,null,null,null,null,null,null,null,null,null,null,null,null,null,null,null,null,null,null,null,null,null,null,1,null,null,null,null,null,null,null,null,null,null,null,null,null,null,null,null,null,null,null,13,"Ailes augstums","Altura interior","Altezza interiore","Alteur intérieure","Interior height","Altura interior","Ailes augstums",null,"Unutrašnja visina",null,null,null,null,"Diciembre","Dicembre"," Décembre","December","Dezembro","Decembris",null,"Decembar"]
[null,null,null,null,null,null,null,null,null,null,null,null,null,null,null,null,null,null,null,null,null,null,null,null,2,null,null,null,null,null,null,null,null,null,null,null,null,null,null,null,null,null,null,null,14,"Materiāls","Tipo de puerta","Tipo di porta","Type de porte","Door type","Tipo de porta","Materiāls",null,"Tip vrata"]
[null,null,null,null,null,null,null,null,null,null,null,null,null,null,null,null,null,null,null,null,null,null,null,null,3,null,null,null,null,null,null,null,null,null,null,null,null,null,null,null,null,null,null,null,15,"4mm stikls","Cristal 4mm","Vetro 4mm","Verre 4mm","4mm glass","Vidro 4mm","4mm stikls",null,"4mm stklo"]
[null,null,null,null,null,null,null,null,null,null,null,null,null,null,null,null,null,null,null,null,null,null,null,null,4,null,null,null,null,null,null,null,null,null,null,null,null,null,null,null,null,null,null,null,16,"Koks","Madera","Legno","Bois","Wood","Madeira","Koks",null,"Drvo"]
[null,null,null,null,null,null,null,null,null,null,null,null,null,null,null,null,null,null,null,null,null,null,null,null,5,null,null,null,null,null,null,null,null,null,null,null,null,null,null,null,null,null,null,null,17,"Koks + 4mm stikls","Madera + Cristal 4mm","Legno + Vetro 4mm","Bois + Verre 4mm","Wood + 4mm glass","Madeira + Vidro 4mm","Koks + 4mm stikls",null,"Drvo + 4mm staklo"]
[null,null,null,null,null,null,null,null,null,null,null,null,null,null,null,null,null,null,null,null,null,null,null,null,null,null,null,null,null,null,null,null,null,null,null,null,null,null,null,null,null,null,null,null,18,"Roktura profils","Modelo de tirador","Modello di maniglia","Modèle de poignée","Handle model","Modelo de puxador","Roktura profils",null,"Model ručke"]
[null,null,null,null,null,null,null,null,null,null,null,null,null,null,null,null,null,null,null,null,null,null,null,null,null,null,null,null,null,null,null,null,null,null,null,null,null,null,null,null,null,null,null,null,19,"Dalījuma profilu skaits","Nº de travesaños","Nº di traversi","Nº de traverses","Nº of crosspieces","Nº de perfis japonesa","Dalījuma profilu skaits",null,"Broj poprečnih delova"]
[null,null,null,null,null,null,null,null,null,null,null,null,null,null,null,null,null,null,null,null,null,null,null,null,null,null,null,null,null,null,null,null,null,null,null,null,null,null,null,null,null,null,null,null,20,"U profils","Perfil L","Profilo L","Profil L","L profile","Calha L","U profils",null,"L profil"]
[null,null,null,null,null,null,null,null,null,null,null,null,null,null,null,null,null,null,null,null,null,null,null,null,null,null,null,null,null,null,null,null,null,null,null,null,null,null,null,null,null,null,null,null,21,"U profils","Perfil U","Profilo U","Profil U","U profile","Calha U","U profils",null,"U profil"]
[null,null,null,null,null,null,null,null,null,null,null,null,null,null,null,null,null,null,null,null,null,null,null,null,"Perfil U/L","Resto",{"$f":"Y12","v":"4mm stikls"},null,null,null,null,null,null,null,null,null,null,null,null,null,null,null,null,null,22,"Bez U profila","Sin perfil L","Senza profilo L","Sans profil L","w/o L profile","Sem calha L","Bez U profila",null,"bez L profila"]
[null,null,null,null,null,null,null,null,null,null,null,null,null,null,null,null,null,null,null,null,null,null,null,null,{"$f":"IF($C$12=$Y$12,AA28,Z28)","v":"Bez U profila"},{"$f":"AT28","v":"Bez U profila"},{"$f":"+AT27","v":"Bez U profila"},null,null,null,null,null,null,null,null,null,null,null,null,null,null,null,null,null,23,"Bez U profila","Sin perfil U","Senza profilo U","Sans profil U","w/o U profile","Sem calha U","Bez U profila",null,"bez U profila"]
[null,null,null,null,null,null,null,null,null,null,null,null,null,null,null,null,null,null,null,null,null,null,null,null,{"$f":"IF($C$12=$Y$12,AA29,Z29)","v":"Apakšā"},{"$f":"+AT29","v":"Apakšā"}," ",null,null,null,null,null,null,null,null,null,null,null,null,null,null,null,null,null,24,"Apakšā","Abajo","Inferiore","Inférieur","Down","Abaixo","Apakšā",null,"Dole"]
[null,null,null,null,null,null,null,null,null,null,null,null,null,null,null,null,null,null,null,null,null,null,null,null,null,null,null,null,null,null,null,null,null,null,null,null,null,null,null,null,null,null,null,null,25,"Augšā","Arriba","Superiore","Supérieur","Up","Arriba","Augšā",null,"Gore"]
[null,null,null,null,null,null,null,null,null,null,null,null,null,null,null,null,null,null,null,null,null,null,null,null,null,null,null,null,null,null,null,null,null,null,null,null,null,null,null,null,null,null,null,null,26,"Augšā un apakšā","Arriba y abajo","Superiore ed inferiore","Supérieur et inférieur","Up & Down","Arriba e abaixo","Augšā un apakšā",null,"Gore i dole"]
[null,null,null,null,null,null,null,null,null,null,null,null,null,null,null,null,null,null,null,null,null,null,null,null,null,null,null,null,null,null,null,null,null,null,null,null,null,null,null,null,null,null,null,null,27,"VĒRTNES IZMĒRS","MEDIDAS DE LA PUERTA","DIMENSIONI DELLA PORTA","DIMENSIONS DE LA PORTE","DOOR SIZES","MEDIDAS DA PORTA","VĒRTNES IZMĒRS",null,"Dimenzije vrata"]
[null,null,null,null,null,null,null,null,null,null,null,null,null,null,null,null,null,null,null,null,null,null,null,null,null,null,null,null,null,null,null,null,null,null,null,null,null,null,null,null,null,null,null,null,28,"Roktura profils (H) =","Perfil tirador (H) =","Profilo maniglia (H) =","Profil poignée (H) =","Handle profile (H) =","Puxador (H) =","Roktura profils (H) =",null,"Ručka profil (H) ="]
[null,null,null,null,null,null,null,null,null,null,null,null,null,null,null,null,null,null,null,null,null,null,null,null,null," ",null,null,null,null,null,null,null,null,null,null,null,null,null,null,null,null,null,null,29,"U / H profils (TR) =","Perfil U / H / L (TR) =","Profilo U / H / L (TR) =","Profil U / H / L (TR) =","U / H / L profile (TR) =","Calha U/japonesa/L (TR) =","U / H profils (TR) =",null,"U / H / L profil (TR) ="]
[null,null,null,null,null,null,null,null,null,null,null,null,null,null,null,null,null,null,null,null,null,null,null,null,null,null,null,null,null,null,null,null,null,null,null,null,null,null,null,null,null,null,null,null,30,"Augš. / apakš. profils = ","Perfil sup. / inf. =","Profilo sup. / inf. =","Profil sup. / inf. =","Sup. / Inf. profile  =","Calha Sup. / Inf. =","Augš. / apakš. profils = ",null,"Gornji / Donji profil ="]
[null,null,null,null,null,null,null,null,null," ",null,null,null,null,null,null,null,null,null,null,null,null,null,null,null,null,null,null,null,null,null,null,null,null,null,null,null,null,null,null,null,null,null,null,31,"Augstums (Hc)","Alto (Hc)","Altezza (Hc)","Alteur (Hc)","Height (Hc)","Altura (Hc)","Augstums (Hc)",null,"Visina (Hc)"]
[null,null,null,null,null,null,null,null,null,null,null,null,null,null,null,null,null,null,null,null,null,null,null,null,null,null,null,null,null,null,null,null,null,null,null,null,null,null,null,null,null,null,null,null,32,"Platums (C)","Ancho (C)","Lunguezza (C)","Largeur (C)","Width (C)","Largura (C)","Platums (C)",null,"Širina (C)"]
[null,null,null,null,null,null,null,null,null,null,null,null,null,null,null,null,null,null,null,null,null,null,null,null,null,null,null,null,null,null,null,null,null,null,null,null,null,null,null,null,null,null,null,null,33,"Panelis *:","Tablero  *:","Panello  *:","Panneau  *:","Panel  *:","Painel  *:","Panelis *:",null,"Ploča *:"]
[null,null,null,null,null,null,null,null,null,null,null,null,null,null,null,null,null,null,null,null,null,null,null,null,null,null,null,null,null,null,null,null,null,null,null,null,null,null,null,null,null,null,null,null,34,"Stikls *:","Cristal *:","Vetro *:","Verre  *:","Glass *:","Vidro  *:","Stikls *:",null,"Staklo *:"]
[null,null,null,null,null,null,null,null,null,null,null,null,null,null,null,null,null,null,null,null,null,null,null,null,null,null,null,null,null,null,null,null,null,null,null,null,null,null,null,null,null,null,null,null,35,"*Ar vienādiem dalījumiem","* Travesaños equidistantes.","* Traversi equidistanti.","* Traverses équidistants.","*Equidistant crosspieces.","* Perfis japonesa equidistantes.","*Ar vienādiem dalījumiem",null,"* Jednaki poprečni delovi"]
[null,null,null,null,null,null,null,null,null,null,null,null,null,null,null,null,null,null,null,null,null,null,null,null,null,null,null,null,null,null,null,null,null,null,null,null,null,null,null,null,null,null,null,null,36,"Komentāri:","Observaciones:","Commenti:","Remarques:","Comments:","Observaçoes:","Komentāri:",null,"Komentari:"]
[null,null,null,null,null,null,null,null,null,null,null,null,null,null,null,null,null,null,null,null,null,null,null,null,null,null,null,null,null,null,null,null,null,null,null,null,null,null,null,null,null,null,null,null,37," - UZMANĪBU"," - ¡OJO! La versión "," - ATTENZIONE! La versione "," - ATTENTION! La version "," - WATCH OUT! "," - ¡ATENÇAO! A versão "," - UZMANĪBU",null," - PAŽNJA !"]
[null,null,null,null,null,null,null,null,null,null,null,null,null,null,null,null,null,null,null,null,null,null,null,null,null,null,null,null,null,null,null,null,null,null,null,null,null,null,null,null,null,null,null,null,38,"versija nav***"," no es compatible con los tiradores de 19mm."," non è compatibile con le maniglie per 19mm."," n'est pas compatible avec des poignées pour 19mm."," version is not compatible with 19mm handles."," não é compativel com os puxadores de 19mm.","versija nav***",null,"verzija nije kompatibilna sa ručkama 19mm."]
[null,null,null,null,null,null,null,null,null,null,null,null,null,null,null,null,null,null,null,null,null,null,null,null,"MENSAJES DE ERROR / RECORDATORIOS",null,null,null,null,null,null,null,null,null,null,null,null,null,null,null,null,null,null,null,39," - UZMANĪBU! Nav iespējams likt U profilu vērtnes augšā."," - ¡OJO! No es posible montar perfil U en la parte de arriba de la puerta."," - ATTENZIONE! Non si puó assemblare profilo U nella parte superiore della porta."," - ATTENTION! Profil U ne peu pas être assemblé à la parte supérieur de la porte."," - WATCH OUT! It is not possible to assembly U profile on the upper part of the door.",{"$f":"\" - ATENÇÃO! Não é possível montar perfil U na parte de para cima da porta.\"","v":" - ATENÇÃO! Não é possível montar perfil U na parte de para cima da porta."}," - UZMANĪBU! Nav iespējams likt U profilu vērtnes augšā.",null," - PAŽNJA ! Nije moguće montirati U profil na gornji deo vrata."]
[null,null,null,null,null,null,null,null,null,null,null,null,null,null,null,null,null,null,null,null,null,null,null,null,null,null,null,null,null,null,null,null,null,null,null,null,null,null,null,null,null,null,null,null,40," - UZMANĪBU! 19mm***",{"$f":"\" - ¡OJO! Los perfiles de 19mm no son compatibles con la puerta \"&$C$12&\".\"","v":" - ¡OJO! Los perfiles de 19mm no son compatibles con la puerta Koks + 4mm stikls."},{"$f":"\" - ATTENZIONE! I profili di 19mm non sono compatibili con la porta \"&$C$12&\".\"","v":" - ATTENZIONE! I profili di 19mm non sono compatibili con la porta Koks + 4mm stikls."},{"$f":"\" - ATTENTION! Les profils pour 19mm ne sont pas compatibles avec la porte \"&$C$12&\".\"","v":" - ATTENTION! Les profils pour 19mm ne sont pas compatibles avec la porte Koks + 4mm stikls."},{"$f":"\" - WATCH OUT! 19mm profiles are not compatible with \"&$C$12& \"door.\"","v":" - WATCH OUT! 19mm profiles are not compatible with Koks + 4mm stiklsdoor."},{"$f":"\" - ¡ATENÇAO! Os puxadores de 19mm não são compatíveis com a porta \"&$C$12&\".\"","v":" - ¡ATENÇAO! Os puxadores de 19mm não são compatíveis com a porta Koks + 4mm stikls."}," - UZMANĪBU! 19mm***",null,{"$f":"\" - PAŽNJA ! Profili 19mm nisu kompatibilni sa \"&$C$12&\" vratima.\"","v":" - PAŽNJA ! Profili 19mm nisu kompatibilni sa Koks + 4mm stikls vratima."}]
[null,null,null,null,null,null,null,null,null,null,null,null,null,null,null,null,null,null,null,null,null,null,null,null,null,null,null,null,null,null,null,null,null,null,null,null,null,null,null,null,null,null,null,null,41,{"$f":"HLOOKUP($AU$4,$AU$6:$BB$85,AS46,0)&\" 16-E4001621.\"","v":" - Neaizmirstat blīvējumu stiklam  16-E4001621."}," - No olvidar pedir la guarnición para cristal cód. "," - Non dimenticare la guarnizione per vetro cod. "," - N'oubliez pas le profil pour verre code "," - Do not forget glass gasket code "," - Não se esqueça pedir o vedante para o vidro cod."," - Neaizmirstat blīvējumu stiklam ",null," - Ne zaboravite šifru za gumu za staklo"]
[null,null,null,null,null,null,null,null,null,null,null,null,null,null,null,null,null,null,null,null,null,null,null,null,null,"orden","¿activar?","error",null,null,null,null,null,null,null,null,null,null,null,null,null,null,null,null,42,{"$f":"HLOOKUP($AU$4,$AU$6:$BB$85,AS47,0)","v":" - Neaizmirstat ***"}," - No olvidar pedir el paragolpes cód. 8920221 para el perfil tirador Vall19."," - Non dimenticare di ordinare la gomma paracolpi cod. 8920221 per il profilo maniglia Vall19."," - N'oubliez pas d'acheter le profil pare-chocs code 8920221 pour le profil poignée Vall19."," - Do not forget to order bumper profile code 8920221 for Vall19 handle."," - Não se esqueça pedir o perfil batente cod. 8920221 para o perfil puxador Vall19."," - Neaizmirstat ***",null," - Ne zaboravite da naručite bumper za profil šifra 8920221 za Vall 19 ručku."]
[null,null,null,null,null,null,null,null,null,null,null,null,null,null,null,null,null,null,null,null,null,null,null,null,"PLACARD  CLÁSICO + 19mm",{"$f":"AA48&COUNTIF($AA$48:$AA$61,AA48)-COUNTIF(AA48:$AA61,AA48)+1","v":"N1"},{"$f":"IF(ISERROR(VLOOKUP($C$13,$AF$18:$AF$20,1,0)),\"N\",IF(OR($C$7=$Y$5,$C$7=$Y$6),\"S\",\"N\"))","v":"N"},{"$f":"$AT$42&$C$7&$AT$43","v":" - UZMANĪBUPlackardversija nav***"},null,null,null,null,null,null,null,null,null,null,null,null,null,null,null,null,43,{"$f":"HLOOKUP($AU$4,$AU$6:$BB$85,AS48,0)","v":" - Neaizmirstat ***"}," - No olvidar pedir el accesorio cód. 6006920 para fijar los cristales."," - Non dimenticare di ordinare gli accessori cod. 6006920 per il fissagio dei vetri."," - N'oubliez pas d'acheter les accessoires code 6006920 pour la fixation des verres."," - Do not forget to order accessories code 6006920 for fixing the glasses."," - Não se esqueça pedir o accessório cod. 6006920 para a montagem dos vidros."," - Neaizmirstat ***",null," - Ne zaboravite da naručite aksesoar šifra 6006920 za fiksiranje stakla."]
[null,null,null,null,null,null,null,null,null,null,null,null,null,null,null,null,null,null,null,null,null,null,null,null,"PERFIL U SUP EN PTA MADERA",{"$f":"AA49&COUNTIF($AA$48:$AA$61,AA49)-COUNTIF(AA49:$AA62,AA49)+1","v":"N2"},{"$f":"IF($B$15=$AT$26,IF(ISERROR(VLOOKUP($C$15,$Z$28:$Z$31,1,0)),\"S\",\"N\"),\"N\")","v":"N"},{"$f":"$AT$44","v":" - UZMANĪBU! Nav iespējams likt U profilu vērtnes augšā."},null,null,null,null,null,null,null,null,null,null,null,null,null,null,null,null,44,{"$f":"HLOOKUP($AU$4,$AU$6:$BB$85,AS49,0)&\" 16-E7917121.\"","v":" - Neaizmirstat blīvējumu stiklam  16-E7917121."}," - No olvidar pedir la guarnición para cristal cód. "," - Non dimenticare la guarnizione per vetro cod. "," - N'oubliez pas le profil pour verre code "," - Do not forget glass gasket code "," - Não se esqueça pedir o vedante para o vidro cod."," - Neaizmirstat blīvējumu stiklam ",null," - Ne zaboravite šifru za gumu za staklo."]
[null,null,null,null,null,null,null,null,null,null,null,null,null,null,null,null,null,null,null,null,null,null,null,null,"PUERTA CRISTAL + 19mm",{"$f":"AA50&COUNTIF($AA$48:$AA$61,AA50)-COUNTIF(AA50:$AA63,AA50)+1","v":"N3"},{"$f":"IF(AND(OR($C$12=$Y$12,$C$12=$Y$14),ISERROR(VLOOKUP($C$13,$AF$5:$AF$15,1,0))),\"S\",\"N\")","v":"N"},{"$f":"AT45","v":" - UZMANĪBU! 19mm***"},null,null,null,null,null,null,null,null,null,null,null,null,null,null,null,null,45,{"$f":"HLOOKUP($AU$4,$AU$6:$BB$85,AS50,0)","v":"Vērtnes kopējais platums"},"Ancho total puerta","Larguezza totale porta","Largeur totale porte","Door total width","Largura total porta","Vērtnes kopējais platums",null,"Ukupna širina vrata"]
[null,null,null,null,null,null,null,null,null,null,null,null,null,null,null,null,null,null,null,null,null,null,null,null,"MIN PUERTA C/SLOW",{"$f":"AA51&COUNTIF($AA$48:$AA$61,AA51)-COUNTIF(AA51:$AA64,AA51)+1","v":"N4"},{"$f":"IF(AND(OR($C$7=$Y$6,$C$7=$Y$8),VLOOKUP($C$13,$AF$5:$AP$20,11,0)>$I$7),\"S\",\"N\")","v":"N"},{"$f":"AT51","v":" - UZMANĪBU! Minimālais durvju platums priekš aizvēršanas un atvēršanas bremzes ir 656mm."},null,null,null,null,null,null,null,null,null,null,null,null,null,null,null,null,46,{"$f":"HLOOKUP($AU$4,$AU$6:$BB$85,AS51,0)","v":" - UZMANĪBU! Minimālais durvju platums priekš aizvēršanas un atvēršanas bremzes ir 656mm."},{"$f":"\" - ¡OJO! El ancho mínimo de puerta para Slowmove en apertura y cierre es de \"&VLOOKUP($C$13,$AF$5:$AP$20,11,0)&\"mm.\"","v":" - ¡OJO! El ancho mínimo de puerta para Slowmove en apertura y cierre es de 656mm."},{"$f":"\" - ATTENZIONE! La larguezza minima della porta per Slowmove in apertura e chiusura è \"&VLOOKUP($C$13,$AF$5:$AP$20,11,0)&\"mm.\"","v":" - ATTENZIONE! La larguezza minima della porta per Slowmove in apertura e chiusura è 656mm."},{"$f":"\" - ATTENTION! La largeur minimal de la porte pour Slowmove à l'ouverture et à la fermeture est \"&VLOOKUP($C$13,$AF$5:$AP$20,11,0)&\"mm.\"","v":" - ATTENTION! La largeur minimal de la porte pour Slowmove à l'ouverture et à la fermeture est 656mm."},{"$f":"\" - WATCH OUT! The minimun door width for open and close softclosing is \"&VLOOKUP($C$13,$AF$5:$AP$20,11,0)&\"mm.\"","v":" - WATCH OUT! The minimun door width for open and close softclosing is 656mm."},{"$f":"\" - ¡ATENÇAO! A largura mínima da porta para abrir e fechar o Slowmove é \"&VLOOKUP($C$13,$AF$5:$AP$20,11,0)&\"mm.\"","v":" - ¡ATENÇAO! A largura mínima da porta para abrir e fechar o Slowmove é 656mm."},{"$f":"\" - UZMANĪBU! Minimālais durvju platums priekš aizvēršanas un atvēršanas bremzes ir \"&VLOOKUP($C$13,$AF$5:$AP$20,11,0)&\"mm.\"","v":" - UZMANĪBU! Minimālais durvju platums priekš aizvēršanas un atvēršanas bremzes ir 656mm."},null,{"$f":"\" - PAŽNJA ! Minimalna širina vrata za otvaranje i zatvaranje meko zatvaranje je \"&VLOOKUP($C$13,$AF$5:$AP$20,11,0)&\"mm.\"","v":" - PAŽNJA ! Minimalna širina vrata za otvaranje i zatvaranje meko zatvaranje je 656mm."}]
[null,null,null,null,null,null,null,null,null,null,null,null,null,null,null,null,null,null,null,null,null,null,null,null,null,null,null,"recordatorio",null,null,null,null,null,null,null,null,null,null,null,null,null,null,null,null,47,{"$f":"HLOOKUP($AU$4,$AU$6:$BB$85,AS52,0)","v":" - Augšējais/apakšējais profils ir nepieciešams ja augšējais/apakšējais panelis ir no stikla"}," - Se requiere perfil superior/inferior si el panel superior/inferior es de cristal."," - Il profilo superiore/inferiore è richiesto se il panello superiore/inferiore è in vetro."," - Le profil supérieur/inférieur est réquiert si le panneau supérieur/inférieur est en verre."," - The upper/lower profile is required if the upper/lower pannel is of glass."," - Calha superior / inferior necessária se o painel superior / inferior for de vidro."," - Augšējais/apakšējais profils ir nepieciešams ja augšējais/apakšējais panelis ir no stikla",null,"(pending translation)"]
[null,null,null,null,null,null,null,null,null,null,null,null,null,null,null,null,null,null,null,null,null,null,null,null,"PARAGOLPES VALL19",null,null,{"$f":"$AT$47","v":" - Neaizmirstat ***"},null,null,null,null,null,null,null,null,null,null,null,null,null,null,null,null,48,{"$f":"HLOOKUP($AU$4,$AU$6:$BB$85,AS53,0)","v":0},{"$f":"\" - ¡OJO! Los travesaños requieren un mecanizado especial: por la parte trasera deben ser \"&IF($C$13=#REF!,2,13)&\"mm más cortos.\"","v":{"$error":"#REF!"}},{"$f":"\" - ATTENZIONE! I traversi richiedono una lavorazione speziale: la parte posteriore debe essere \"&IF($C$13=#REF!,2,13)&\"mm piú corta.\"","v":{"$error":"#REF!"}},{"$f":"\" - ATTENTION! Des traverses requierent d'un usinage special: la part arrière doit être \"&IF($C$13=#REF!,2,13)&\"mm plus court.\"","v":{"$error":"#REF!"}},{"$f":"\" - WATCH OUT! Crosspieces need an special machining: they must be \"&IF($C$13=#REF!,2,13)&\"mm shorter in the back.\"","v":{"$error":"#REF!"}},{"$f":"\" - ¡ATENÇAO! Os perfis japonesa requer usinagem especial: no lado traseiro deve ser \"&IF($C$13=#REF!,2,13)&\"mm mais curto.\"","v":{"$error":"#REF!"}},null,null,{"$f":"\" - PAŽNJA ! Poprečni delovi zahtevaju dodatnu mašinsku obradu: oni moraju biti \"&IF($C$13=#REF!,2,13)&\"mm kraći sa zadnje strane.\"","v":{"$error":"#REF!"}}]
[null,null,null,null,null,null,null,null,null,null,null,null,null,null,null,null,null,null,null,null,null,null,null,null,"PER SUP/INF+PUER CR-MAD",{"$f":"AA54&COUNTIF($AA$48:$AA$61,AA54)-COUNTIF(AA54:$AA67,AA54)+1","v":"S1"},{"$f":"IF($C$12=$Y$14,\"S\",\"N\")","v":"S"},{"$f":"+$AT$52","v":" - Augšējais/apakšējais profils ir nepieciešams ja augšējais/apakšējais panelis ir no stikla"}]
[null,null,null,null,null,null,null,null,null,null,null,null,null,null,null,null,null,null,null,null,null,null,null,null,"CUÑAS P/CRISTAL (10/16mm)",null,null,{"$f":"AT48","v":" - Neaizmirstat ***"}]
[null,null,null,null,null,null,null,null,null,null,null,null,null,null,null,null,null,null,null,null,null,null,null,null,"GUARN P/MAD+CRISTAL AGL10/16",{"$f":"AA56&COUNTIF($AA$48:$AA$61,AA56)-COUNTIF(AA56:$AA68,AA56)+1","v":"N5"},{"$f":"IF(AND(OR($C$12=$Y$12,$C$12=$Y$14),OR(VLOOKUP($C$13,$AB$5:$AC$20,2,0)=10,VLOOKUP($C$13,$AB$5:$AC$20,2,0)=16)),\"S\",\"N\")","v":"N"},{"$f":"$AT$46","v":" - Neaizmirstat blīvējumu stiklam  16-E4001621."}]
[null,null,null,null,null,null,null,null,null,null,null,null,null,null,null,null,null,null,null,null,null,null,null,null,"GUARN P/MAD+CRISTAL AGL18",{"$f":"AA57&COUNTIF($AA$48:$AA$61,AA57)-COUNTIF(AA57:$AA69,AA57)+1","v":"S2"},{"$f":"IF(AND(OR($C$12=$Y$12,$C$12=$Y$14),VLOOKUP($C$13,$AB$5:$AC$20,2,0)=18),\"S\",\"N\")","v":"S"},{"$f":"+$AT$49","v":" - Neaizmirstat blīvējumu stiklam  16-E7917121."}]
[null,null,null,null,null,null,null,null,null,null,null,null,null,null,null,null,null,null,null,null,null,null,null,null,"MECANIZ ESP TRAV. SLIGHT/STYLE",{"$f":"AA58&COUNTIF($AA$48:$AA$61,AA58)-COUNTIF(AA58:$AA70,AA58)+1","v":{"$error":"#REF!"}},{"$f":"IF(AND(OR($C$13=#REF!,$C$13=#REF!),$C$14>0),\"S\",\"N\")","v":{"$error":"#REF!"}},{"$f":"$AT$53","v":0}]